[Event "Przeworsk GM norm 2022"]
[Site "Przeworsk"]
[Date "2022.06.01"]
[Round "4.4"]
[White "Neugebauer, Martin"]
[Black "Baum, Jonasz"]
[Result "1-0"]
[ECO "B90"]
[WhiteElo "2505"]
[BlackElo "2409"]
[Annotator "TA"]
[PlyCount "71"]
[EventDate "2022.05.30"]
[EventType "tourn"]
[EventCountry "POL"]
[SourceTitle "playchess.com"]
[Source "ChessBase"]
[SourceQuality "1"]
[TimeControl "40/5400+30:1800+30"]

{[%evp 11,70,20,14,-16,-6,-13,16,6,20,10,18,0,10,-6,-8,-4,19,15,24,22,50,57,69,81,104,100,104,104,100,100,85,72,114,113,114,107,93,105,128,87,131,87,179,189,270,226,258,238,841,648,629,634,813,811,765,719,29975,29976,29985,29967,29999]} 1. e4 {[%emt 0:00:10]} c5 {[%emt 0:00:06]} 2. Nf3 {[%emt 0:00:46]} d6 {[%emt 0:00:06]} 3. d4 {[%emt 0:00:19]} cxd4 {[%emt 0:00:05]} 4. Nxd4 {[%emt 0:00:05]} Nf6 {[%emt 0:00:05]} 5. Nc3 {[%emt 0:00:09]} a6 {[%emt 0:00:04]} 6. Bd3 {[%emt 0:00:52]} g6 {[%emt 0:02:04]} 7. h3 {[%emt 0:00:47] B90: Sicilian Najdorf: Unusual White 6th moves, 6 Be3 Ng4 and 6 Be3 e5.} Bg7 {[%emt 0:00:39]} 8. Be3 {[%emt 0:00:33]} Nc6 {[%emt 0:01:25]} 9. Qd2 {[%emt 0:02:33] The position is equal.} O-O {[%emt 0:03:41]} 10. O-O {[%emt 0:03:46]} Bd7 {[%emt 0:01:42]} 11. a4 {[%emt 0:05:02]} Rc8 {[%emt 0:01:54]} 12. f4 {[%emt 0:08:17][%cal Bf2f4,Bf4f5][%mdl 32] [#]} Nxd4 $146 {[%emt 0:06:41]} ({Predecessor:} 12... Nh5 13. Nce2 Nxd4 14. Nxd4 e5 15. Ne2 exf4 16. Nxf4 Nxf4 17. Bxf4 Bxb2 18. Rab1 Bc3 {0-1 (30) Weiland,T-Roediger,T (2071) Frankfurt 2000}) 13. Bxd4 {[%emt 0:00:09]} Bc6 {[%emt 0:00:09]} 14. a5 {[%emt 0:04:39]} Qd7 {[%emt 0:18:28]} 15. Qf2 {[%emt 0:11:13]} Ne8 {[%emt 0:20:02]} 16. Bxg7 {[%emt 0:02:12]} Nxg7 {[%emt 0:00:28]} 17. f5 {[%emt 0:04:12]} Ne8 {[%emt 0:09:03]} 18. Nd5 {[%emt 0:14:10]} Bxd5 {[%emt 0:00:45]} 19. exd5 {[%emt 0:00:06]} Nf6 {[%emt 0:02:00]} 20. c4 {[%emt 0:00:16]} Qc7 {[%emt 0:09:12]} 21. Rfe1 {[%emt 0:02:34]} Rce8 {[%emt 0:01:21]} 22. b4 $36 {[%emt 0:01:56][%mdl 2048] White has strong initiative.} Nd7 {[%emt 0:00:05]} 23. Rac1 {[%emt 0:01:39][%cal Ba1c1,Bc1c3,Bc3g3][%mdl 32] 0x0.002043f18c8fdp-1022s more active pieces. The black rooks are badly placed.} Ne5 {[%emt 0:00:12]} 24. Bb1 {[%emt 0:02:23]} Qd7 {[%emt 0:00:44]} 25. Qf4 {[%emt 0:07:25] Black must now prevent Qh6.} Kg7 {[%emt 0:02:12] Prevents Qh6+.} 26. Rc3 {[%emt 0:01:42]} Rc8 {[%emt 0:01:18]} (26... f6 $16) 27. c5 $18 {[%emt 0:01:13]} f6 {[%emt 0:05:50]} (27... Kh8 {keeps fighting.} 28. Bc2 g5 29. Qxg5 f6) 28. fxg6 {[%emt 0:01:09]} hxg6 {[%emt 0:00:01] [#]} 29. Rg3 $1 {[%emt 0:01:01]} Qe8 $2 {[%emt 0:00:03]} (29... f5 30. h4 Rf6) 30. cxd6 {[%emt 0:08:37]} exd6 {[%emt 0:01:50][%cal Oe5f3] [#] aiming for ...Nf3+!} 31. Bxg6 $1 {[%emt 0:02:44][%mdl 512]} Nf3+ {[%emt 0:00:09]} (31... Qxg6 32. Rxg6+) 32. Qxf3 {[%emt 0:00:04]} Qxe1+ {[%emt 0:00:05]} 33. Kh2 {[%emt 0:00:03] Threatening mate with Bf5+.} Rc7 {[%emt 0:06:14]} 34. Qg4 {[%emt 0:02:43] White mates.} ({Less strong is} 34. Qh5 Rh8 35. Bh7+ Qxg3+ 36. Kxg3 Rxh7 37. Qg4+ Kh8 $18) 34... Qc1 {[%emt 0:06:12]} 35. Bd3+ {[%emt 0:01:32]} Kf7 {[%emt 0:00:16]} 36. Qe6# {[%emt 0:00:45] Weighted Error Value: White=0.13 (very precise) /Black=0.40} 1-0

[Event "Przeworsk GM norm 2022"]
[Site "Przeworsk"]
[Date "2022.06.01"]
[Round "4.5"]
[White "Golubka, Petro"]
[Black "Licznerski, Lukasz"]
[Result "1/2-1/2"]
[ECO "B10"]
[WhiteElo "2380"]
[BlackElo "2439"]
[Annotator "TA"]
[PlyCount "184"]
[EventDate "2022.05.30"]
[EventType "tourn"]
[EventCountry "POL"]
[SourceTitle "playchess.com"]
[Source "ChessBase"]
[SourceQuality "1"]
[TimeControl "40/5400+30:1800+30"]

{[%evp 16,184,42,20,23,13,41,8,27,27,34,22,22,22,31,20,18,13,24,9,9,19,22,-5,20,20,32,0,0,0,0,-5,22,0,25,21,20,11,20,-14,-15,-10,-7,-20,-2,-11,0,-29,0,0,0,0,0,-4,11,-13,-10,-5,-4,-10,-7,-15,0,0,0,0,0,0,0,-91,-65,-60,0,0,0,-79,-81,-71,-77,-911,0,-5,0,-4,0,0,0,0,0,0,0,0,0,0,0,0,0,0,0,-116,-127,-116,-116,-116,-116,-119,-111,-127,-57,-65,-50,-50,-50,-106,-106,-106,-81,-81,-81,-81,-81,-131,-131,-131,-131,-131,-131,-196,-131,-196,-131,-131,-131,-131,0,-131,0,-196,-196,-196,-196,-196,-143,-148,-148,-148,0,0,0,0,0,0,0,0,0,0,0,0,0,0,0,0,0,0,0,0,0,0,0,0,0]} 1. e4 {[%emt 0:02:12]} c6 {[%emt 0:00:10]} 2. Nf3 {[%emt 0:00:05]} d5 {[%emt 0:00:05]} 3. d3 {[%emt 0:00:03]} Bg4 {[%emt 0:08:55]} 4. h3 {[%emt 0:03:49]} Bxf3 {[%emt 0:00:51]} 5. Qxf3 {[%emt 0:00:09]} e6 {[%emt 0:00:41]} 6. g3 {[%emt 0:00:13]} Nf6 {[%emt 0:04:06]} 7. Bg2 {[%emt 0:00:42]} Be7 {[%emt 0:09:42]} 8. O-O {[%emt 0:00:59]} O-O {[%emt 0:00:12]} 9. Nd2 {[%emt 0:03:45]} a5 {[%emt 0:08:41] A07: Réti Opening: New York and Capablanca Systems.} 10. a4 {[%emt 0:10:41]} Na6 {[%emt 0:02:52] [#]} 11. Nb3 $146 {[%emt 0:01:18]} ({Predecessor:} 11. Qe2 Nc5 12. e5 Nfd7 13. d4 Na6 14. f4 c5 15. dxc5 Nb4 16. Nb3 Nxc5 17. Nxc5 Bxc5+ {1-0 (47) Pikula,D (2435)-Ratkovic,M (2435) Paracin 2020}) 11... Nd7 {[%emt 0:00:58]} 12. d4 {[%emt 0:00:32]} Qb6 {[%emt 0:11:32]} 13. Qe2 {[%emt 0:08:04]} dxe4 {[%emt 0:20:21]} 14. Bxe4 {[%emt 0:01:48]} Nf6 {[%emt 0:00:19]} 15. Bd3 {[%emt 0:09:36]} Rfd8 {[%emt 0:01:28]} 16. Rd1 {[%emt 0:02:14]} h6 {[%emt 0:00:32]} 17. Bc4 {[%emt 0:00:20]} Nb4 {[%emt 0:02:43]} 18. c3 {[%emt 0:04:53][%cal Bc2c3,Bc3c4][%mdl 32]} Nbd5 {[%emt 0:00:02]} 19. Bd2 {[%emt 0:03:23][%cal Bc1d2,Bd2e1,Be1c3][%mdl 32]} Qc7 {[%emt 0:00:17]} 20. Bd3 {[%emt 0:05:31]} Bd6 {[%emt 0:02:56][%cal Od6g3]} 21. c4 {[%emt 0:03:03]} (21. Qf3 {feels hotter.} Nd7 22. Re1 Re8 23. Bc2) 21... Nb4 {[%emt 0:00:27]} 22. Be1 {[%emt 0:03:48]} Bf8 {[%emt 0:09:27]} 23. Be4 {[%emt 0:01:12]} b6 {[%emt 0:03:30]} 24. Bc3 {[%emt 0:00:34]} Nd7 {[%emt 0:03:05]} 25. Bg2 {[%emt 0:03:16]} Rac8 {[%emt 0:00:10]} 26. Rd2 {[%emt 0:00:36]} Re8 {[%emt 0:01:25]} 27. Rad1 {[%emt 0:05:55]} Na2 {[%emt 0:00:18]} 28. Qd3 {[%emt 0:02:54]} Nxc3 {[%emt 0:00:07]} 29. bxc3 {[%emt 0:00:13]} Nf6 {[%emt 0:01:36]} 30. Qb1 {[%emt 0:03:35]} e5 {[%emt 0:00:33]} 31. Rd3 {[%emt 0:03:33]} c5 {[%emt 0:04:36]} (31... b5 $5 {[%cal Rb5c4]} 32. dxe5 (32. cxb5 e4 $15) (32. axb5 cxb5 33. cxb5 e4 $15) 32... Rxe5 33. cxb5 cxb5 $11) 32. dxe5 {[%emt 0:01:50]} Rxe5 {[%emt 0:00:15]} 33. Nd2 {[%emt 0:03:02]} Rce8 {[%emt 0:00:02]} 34. Nf3 {[%emt 0:02:18]} R5e6 {[%emt 0:00:09]} 35. Re1 {[%emt 0:05:19]} g6 {[%emt 0:02:13]} 36. Rxe6 Rxe6 {[%emt 0:00:03]} 37. Nd2 {[%emt 0:03:33]} h5 {[%emt 0:01:32]} 38. Bd5 {[%emt 0:00:15]} Re2 {[%emt 0:01:31]} 39. Kf1 {[%emt 0:01:25]} Re8 {[%emt 0:00:29][%cal Oh5h4]} 40. Qb5 {[%emt 0:00:00] Hoping for Rf3.} Kg7 {[%emt 0:00:00]} 41. Qc6 {[%emt 0:04:21]} Qd8 {[%emt 0:13:46]} 42. Ne4 {[%emt 0:04:30] [#]} (42. Nf3 $11 {remains equal.}) 42... Re6 $1 $17 {[%emt 0:07:17]} 43. Qb7 {[%emt 0:01:18]} Re7 {[%emt 0:01:47]} (43... Nxd5 $15 44. Rxd5 Qe8) 44. Qc6 $11 {[%emt 0:00:35]} Re6 {[%emt 0:00:56]} 45. Qb7 $17 {[%emt 0:00:09]} Nxd5 {[%emt 0:00:45]} 46. Rxd5 {[%emt 0:00:16]} Qe8 {[%emt 0:00:15]} 47. Ng5 {[%emt 0:01:00][%mdl 8192]} (47. f3 $17) 47... Re1+ $2 {[%emt 0:02:34]} (47... Re7 $1 $19 {[%cal Re7b7]} 48. Qxb6 Re1+ 49. Kg2 Qe2) 48. Kg2 $11 {[%emt 0:00:08]} Be7 {[%emt 0:01:07] White must now prevent ...Bxg5.} 49. Nf3 {[%emt 0:01:22]} Re6 {[%emt 0:00:49]} 50. Rd7 {[%emt 0:00:28]} Bf6 {[%emt 0:00:19]} 51. h4 {[%emt 0:02:05]} Re7 {[%emt 0:02:27]} (51... Bxc3 $2 52. Ng5 Bf6 53. Nxe6+ Qxe6 54. Qd5 $18) 52. Rxe7 {[%emt 0:00:09]} Bxe7 {[%emt 0:00:02][%mdl 4096] Endgame KQB-KQN} 53. Qe4 {[%emt 0:03:30]} Qd7 {[%emt 0:01:01]} 54. Ne5 $1 {[%emt 0:01:13]} Qc7 {[%emt 0:01:17]} 55. Nd3 {[%emt 0:02:39]} Qd7 {[%emt 0:02:23]} 56. Nf4 {[%emt 0:02:21]} Bf6 {[%emt 0:00:47]} 57. Qc2 {[%emt 0:00:11] [#]} (57. Nd5 $11) 57... Bxh4 $1 $17 {[%emt 0:00:15][%mdl 512]} 58. Nd5 {[%emt 0:02:52]} Bd8 {[%emt 0:00:03]} 59. Qd1 {[%emt 0:00:05]} Qe6 {[%emt 0:01:08]} 60. Qd3 {[%emt 0:01:47] Against Qe4+} Bg5 {[%emt 0:01:10]} 61. Qf3 {[%emt 0:00:45]} f5 {[%emt 0:00:47]} (61... Qc6 $17 62. Qe4 Bd8 63. Qe5+ Bf6) 62. Qd3 {[%emt 0:00:17]} Bd8 {[%emt 0:00:29]} 63. Nf4 {[%emt 0:00:23][%csl LRd8,LRe6]} Qc6+ $1 {[%emt 0:00:17]} 64. Qd5 {[%emt 0:02:31]} (64. f3 $15 Bf6 65. Qd5 Qxd5 66. Nxd5) 64... Qxd5+ {[%emt 0:00:25]} 65. Nxd5 {[%emt 0:02:16] KB-KN} g5 {[%emt 0:00:51]} 66. f4 {[%emt 0:00:11]} g4 {[%emt 0:01:10]} 67. Ne3 {[%emt 0:00:15]} Kf6 {[%emt 0:00:04]} 68. Kf2 {[%emt 0:00:32]} (68. Nd5+ $142 Ke6 69. Ne3) 68... Ke6 {[%emt 0:00:04]} 69. Ke2 {[%emt 0:00:16]} h4 {[%emt 0:00:21]} 70. gxh4 {[%emt 0:00:09]} Bxh4 {[%emt 0:00:01]} 71. Ng2 {[%emt 0:02:33]} (71. Nd5 $17 {might work better.}) 71... Bf6 {[%emt 0:00:31]} (71... Bg3 $1 $19 72. Kd3 Kf7) 72. Kd3 {[%emt 0:00:10]} (72. Ne3 $17 {was necessary.}) 72... Be7 {[%emt 0:00:35]} (72... Kf7 $1 $19 73. Ne3 Ke6) 73. Ke2 {[%emt 0:00:14]} Bd6 {[%emt 0:00:13]} 74. Ke3 {[%emt 0:00:25]} Be7 {[%emt 0:00:31]} 75. Ke2 $1 {[%emt 0:00:29]} Bf6 {[%emt 0:00:05]} (75... Kf6 $17 76. Kf2 Ke6 77. Ke2) 76. Kd3 $19 {[%emt 0:00:04]} Kf7 $1 {[%emt 0:00:16]} 77. Ne3 {[%emt 0:00:36]} Kg6 $1 {[%emt 0:00:53]} 78. Nd5 {[%emt 0:00:21] [#]} Bd8 {[%emt 0:00:50]} ({Black should try} 78... Bh4 $1 $19 {[%cal Rh4f2]} 79. Ke2 Kh5) 79. Ke2 {[%emt 0:00:11]} Kh5 {[%emt 0:00:40]} 80. Kf2 {[%emt 0:00:18] [#]} Kh4 {[%emt 0:00:15]} (80... Kh6 $1 $17 81. Kg3 Kg7) 81. Kg2 $1 $11 {[%emt 0:00:37] The position is equal.} g3 {[%emt 0:00:30] Strongly threatening ...Kg4.} ({Reject} 81... Kh5 $6 82. Kf2 $17) 82. Ne3 {[%emt 0:00:49]} Bc7 {[%emt 0:02:08]} 83. Nxf5+ {[%emt 0:02:25]} Kg4 {[%emt 0:00:02]} 84. Ne3+ {[%emt 0:00:10]} Kxf4 {[%emt 0:00:51]} 85. Nd5+ {[%emt 0:00:06]} Ke4 {[%emt 0:00:03]} 86. Nxc7 {[%emt 0:00:08] aiming for Na8. KN-KP} Kd3 {[%emt 0:00:01][%csl LRc3,LRc4]} 87. Nd5 {[%emt 0:00:17]} Kxc4 {[%emt 0:00:05]} 88. Nxb6+ {[%emt 0:00:02]} Kxc3 {[%emt 0:00:07]} 89. Kxg3 {[%emt 0:00:05]} c4 {[%emt 0:00:29]} 90. Kf3 {[%emt 0:00:15]} Kb3 {[%emt 0:00:33]} 91. Nxc4 {[%emt 0:01:25]} Kxa4 {[%emt 0:00:04]} 92. Nxa5 {[%emt 0:00:06]} Kxa5 {[%emt 0:00:03] Weighted Error Value: White=0.21 (precise) /Black=0.24 (precise)} 1/2-1/2

[Event "Przeworsk GM norm 2022"]
[Site "Przeworsk"]
[Date "2022.06.02"]
[Round "5.1"]
[White "Licznerski, Lukasz"]
[Black "Stefansson, Hannes"]
[Result "0-1"]
[ECO "C68"]
[WhiteElo "2439"]
[BlackElo "2534"]
[Annotator "TA"]
[PlyCount "83"]
[EventDate "2022.05.30"]
[EventType "tourn"]
[EventCountry "POL"]
[SourceTitle "playchess.com"]
[Source "ChessBase"]
[SourceQuality "1"]
[TimeControl "40/5400+30:1800+30"]

{[%evp 15,83,5,0,-14,32,-15,-1,-9,-14,0,0,-17,0,0,0,0,0,0,13,13,37,0,46,0,0,0,0,-4,-4,-4,0,-4,0,-5,0,0,0,0,0,-52,-52,-113,-105,-108,-117,-577,-543,-606,-228,-358,0,0,0,-301,-295,-294,0,-283,-277,-439,-436,-871,-875,-867,-862,-747,-568,-560,-537,-587]} 1. e4 {[%emt 0:05:58]} e5 {[%emt 0:00:12]} 2. Nf3 {[%emt 0:03:05]} Nc6 {[%emt 0:00:11]} 3. Bb5 {[%emt 0:00:04]} a6 {[%emt 0:00:20]} 4. Bxc6 {[%emt 0:00:07]} dxc6 {[%emt 0:00:19]} 5. O-O {[%emt 0:00:03]} Bd6 {[%emt 0:00:23]} 6. d4 {[%emt 0:00:37]} exd4 {[%emt 0:00:11]} 7. Qxd4 {[%emt 0:00:07]} f6 {[%emt 0:00:16]} 8. Nbd2 {[%emt 0:00:32]} Be6 {[%emt 0:02:09]} 9. Qc3 {[%emt 0:00:19] C68: Ruy Lopez: Exchange Variation, sidelines.} Qd7 {[%emt 0:02:02]} (9... Qe7 $11) 10. Nc4 {[%emt 0:01:38]} (10. e5 $14 fxe5 11. Nxe5 Bxe5 12. Qxe5) 10... Bxc4 $11 {[%emt 0:00:41]} 11. Qxc4 {[%emt 0:00:02] The position is equal.} Ne7 {[%emt 0:02:02][%cal Bg8e7,Be7g6,Bg6f4][%mdl 32]} 12. Be3 {[%emt 0:05:00]} Ng6 {[%emt 0:02:18]} 13. Rad1 {[%emt 0:11:48]} O-O-O {[%emt 0:03:25] [#]} 14. Bc5 $146 {[%emt 0:01:44]} ({Predecessor:} 14. Nd4 Ne5 15. Qe2 Ng4 16. Nf5 Nxe3 17. Qxe3 Kb8 18. Rd3 g6 19. Nxd6 cxd6 20. Rfd1 {½-½ (33) Guseinov,G (2665)-Vidit,S (2726) Tornelo INT 2021}) 14... Rhe8 {[%emt 0:03:13]} 15. Rfe1 {[%emt 0:07:01]} Qe7 {[%emt 0:06:02]} 16. Bxd6 {[%emt 0:00:33]} cxd6 {[%emt 0:00:49]} 17. Qc3 {[%emt 0:07:37]} Nf4 {[%emt 0:10:48]} 18. Nd4 {[%emt 0:05:04]} (18. Qd2 $5 {[%cal Rd2f4]} Ne6 19. c4 $11) 18... g6 {[%emt 0:01:04]} (18... Qe5 $11) 19. Re3 {[%emt 0:10:04]} (19. b4 $14 {is more appropriate.}) 19... Qe5 {[%emt 0:02:09]} 20. g3 {[%emt 0:04:24]} Ne6 {[%emt 0:00:48]} 21. Qc4 {[%emt 0:02:14][%cal Od4c6] [#] Threatens to win with Nxc6!} Nxd4 {[%emt 0:04:30]} 22. Rxd4 {[%emt 0:05:21]} h5 {[%emt 0:07:29]} (22... c5 {looks sharper.} 23. c3 b5 24. Qd5 Kc7) 23. c3 {[%emt 0:03:29]} h4 {[%emt 0:01:48]} 24. Qf7 {[%emt 0:01:42]} hxg3 {[%emt 0:01:03]} 25. hxg3 {[%emt 0:03:16]} g5 {[%emt 0:00:51]} 26. Rf3 {[%emt 0:01:44]} (26. Rb4 Re7 27. Qg6 Qe6 $15) 26... c5 {[%emt 0:03:38]} 27. Ra4 {[%emt 0:00:34]} (27. Rdd3 $11) 27... Rf8 $1 $15 {[%emt 0:01:24]} 28. Qg6 {[%emt 0:00:11]} (28. Qd5 $1 $15) 28... Kb8 $17 {[%emt 0:01:03]} 29. Kg2 {[%emt 0:13:20]} Qe7 $36 {[%emt 0:02:27][%mdl 2048] Black is in control.} 30. b4 $2 {[%emt 0:03:05][%mdl 8192]} (30. b3 $17) 30... Rh8 $19 {[%emt 0:03:51] Strongly threatening ...Qd7.} 31. Ra5 {[%emt 0:00:37]} Qc7 $2 {[%emt 0:04:20]} (31... Qe6 {( -> ...Qh3+)} 32. Qf5 Qc4) 32. a3 {[%emt 0:00:49]} (32. Ra3 $142 cxb4 33. Rb3) 32... Ka7 $2 {[%emt 0:06:53]} ({Better is} 32... b6 $19 33. Rxa6 Kb7 34. Rxb6+ Kxb6 35. Rxf6 Qc6) 33. Rxf6 $11 {[%emt 0:00:46]} Rd7 {[%emt 0:00:25][%cal Bd8d7,Bd7h7,Bh7h2][%mdl 32] White must now prevent ...b6.} 34. Ra4 $2 {[%emt 0:03:01][%mdl 8192]} (34. Qxg5 $2 b6 35. bxc5 (35. Ra4 $2 Qc6 $19) 35... bxa5 36. Rxd6 Rxd6 37. cxd6 Qxc3 38. Qe7+ Kb6 $19) (34. c4 $1 $11) 34... Qc6 $19 {[%emt 0:09:34]} 35. Ra5 {[%emt 0:00:02][%cal Oa5c5] Rxc5! is the strong threat.} Qc7 {[%emt 0:01:50]} 36. Ra4 {[%emt 0:00:01] [#]} ({Wrong is} 36. Qxg5 $2 b6 37. bxc5 (37. Ra4 $2 Qc6 $19) 37... bxa5 38. Rxd6 Rxd6 39. cxd6 Qxc3 40. Qe7+ Kb6 $19) 36... Rdh7 $1 {[%emt 0:03:34]} 37. Qxg5 {[%emt 0:02:29]} (37. Rxd6 $142 Rh6 38. Qxh6 Rxh6 39. Rxh6) 37... Qc6 {[%emt 0:03:08][%csl LRa4,LRe4] Black is clearly winning.} ({Not} 37... Qd7 $2 38. Ra5 $19) 38. b5 {[%emt 0:00:17]} (38. Qxc5+ $142 dxc5 39. Rxc6 Rh2+ 40. Kg1 Rh1+ 41. Kg2 R8h2+ 42. Kf3 bxc6 43. Ra5) 38... Qxb5 {[%emt 0:00:24]} 39. Rxd6 {[%emt 0:00:29]} Rh2+ {[%emt 0:01:44]} 40. Kf3 {[%emt 0:00:00]} Qxa4 {[%emt 0:00:00]} 41. Qxc5+ {[%emt 0:00:32]} Ka8 {[%emt 0:04:52]} 42. Rf6 {[%emt 0:03:41] Inhibits Rf8.  Weighted Error Value: White=0.66/Black=0.35} 0-1

[Event "Przeworsk GM norm 2022"]
[Site "Przeworsk"]
[Date "2022.06.02"]
[Round "5.2"]
[White "Baum, Jonasz"]
[Black "Golubka, Petro"]
[Result "1/2-1/2"]
[ECO "D43"]
[WhiteElo "2409"]
[BlackElo "2380"]
[Annotator "TA"]
[PlyCount "115"]
[EventDate "2022.05.30"]
[EventType "tourn"]
[EventCountry "POL"]
[SourceTitle "playchess.com"]
[Source "ChessBase"]
[SourceQuality "1"]
[TimeControl "40/5400+30:1800+30"]

{[%evp 15,115,30,34,20,25,21,19,25,29,23,41,16,17,8,20,6,13,17,36,21,47,46,35,39,32,29,37,35,37,28,43,43,43,24,43,30,43,43,43,43,54,43,43,23,37,16,45,45,58,4,34,0,0,0,0,0,0,0,0,0,0,0,0,1,2,2,17,31,31,31,133,133,125,66,145,134,145,72,81,0,129,68,110,62,71,64,358,333,314,310,281,0,0,0,0,0,0,0,0,0,0,0]} 1. d4 {[%emt 0:00:02]} d5 {[%emt 0:06:40]} 2. c4 {[%emt 0:00:12]} e6 {[%emt 0:00:33]} 3. Nf3 {[%emt 0:00:25]} Nf6 {[%emt 0:00:05]} 4. Nc3 {[%emt 0:02:04]} c6 {[%emt 0:03:10]} 5. Bg5 {[%emt 0:00:34]} Nbd7 {[%emt 0:00:05]} 6. cxd5 {[%emt 0:04:43]} cxd5 {[%emt 0:02:05]} 7. e3 {[%emt 0:01:52]} Be7 {[%emt 0:00:29]} 8. Bd3 {[%emt 0:03:57]} a6 {[%emt 0:00:27]} 9. Ne5 {[%emt 0:16:19] D13: Slav Defence: Exchange variation without ...Bf5.} Nxe5 {[%emt 0:02:36]} 10. dxe5 {[%emt 0:00:14]} Nd7 {[%emt 0:03:05][%csl LRe5,LRg5]} 11. Bxe7 {[%emt 0:00:30]} Qxe7 {[%emt 0:00:05]} 12. f4 {[%emt 0:01:53] [#]} Qb4 $146 {[%emt 0:03:32]} ({Predecessor:} 12... f6 13. O-O O-O 14. exf6 Nxf6 15. e4 d4 16. Ne2 e5 17. fxe5 Qxe5 18. Bc4+ Be6 19. Bxe6+ Qxe6 20. Nxd4 Qxe4 {½-½ (49) Hernando Rodrigo,J (2377)-Cuartas,J (2495) Badalona 2008}) 13. Qe2 {[%emt 0:28:20]} Nc5 {[%emt 0:00:34][%cal Ob4b2] Strongly threatening ...Qxb2!} 14. O-O {[%emt 0:00:49][%cal Bh1f1,Bf1d1,Bd1d4][%mdl 32]} Bd7 {[%emt 0:00:20]} 15. Rac1 {[%emt 0:03:54]} O-O {[%emt 0:07:01]} 16. Bb1 {[%emt 0:02:32]} Bc6 {[%emt 0:06:29]} 17. Rfd1 {[%emt 0:04:19]} Rad8 {[%emt 0:03:02]} 18. Rd4 {[%emt 0:06:26]} Qb6 {[%emt 0:02:37]} 19. Rcd1 {[%emt 0:01:59]} g6 {[%emt 0:03:24]} 20. h4 {[%emt 0:02:14]} Ne4 {[%emt 0:06:34] Inhibits R1d2.} 21. Bxe4 {[%emt 0:00:53]} dxe4 {[%emt 0:01:41]} 22. Rd6 {[%emt 0:02:01]} Rxd6 {[%emt 0:02:21]} 23. Rxd6 {[%emt 0:00:06]} Qc7 {[%emt 0:01:23]} 24. Qd2 {[%emt 0:04:58]} h5 {[%emt 0:04:04]} 25. Qd4 {[%emt 0:00:48]} Rc8 {[%emt 0:00:07]} 26. Kh2 {[%emt 0:00:59]} Qe7 {[%emt 0:01:26]} 27. Kh3 {[%emt 0:00:40]} Kg7 {[%emt 0:00:28]} 28. a4 {[%emt 0:01:16]} (28. Nxe4 Bxe4 29. Qxe4 Rc1 $11) 28... a5 {[%emt 0:01:55]} 29. g3 {[%emt 0:04:40]} Qc7 {[%emt 0:00:25][%cal Ob7b5]} 30. Qc5 {[%emt 0:01:42]} (30. Nxe4 $2 Bxe4 31. Qxe4 Qc1 $19) 30... Kg8 {[%emt 0:02:29]} 31. Rd4 {[%emt 0:02:06]} Kg7 {[%emt 0:04:33]} 32. Kh2 {[%emt 0:00:23]} ({White should play} 32. g4 $14) 32... b6 {[%emt 0:05:03]} (32... Be8 $5 {[%cal Rc7c5]} 33. Qd6 (33. Qxc7 Rxc7 34. Rd8 Bc6 $11) 33... Bc6 $11) 33. Qd6 {[%emt 0:00:40]} Qb7 {[%emt 0:00:08]} 34. Rc4 {[%emt 0:00:56]} b5 {[%emt 0:01:29]} 35. axb5 {[%emt 0:00:44]} Bxb5 {[%emt 0:00:02]} 36. Rxc8 {[%emt 0:00:33]} Qxc8 $11 {[%emt 0:00:38][%mdl 4096] Endgame KQB-KQN} 37. Qb6 {[%emt 0:01:19]} (37. Nxb5 $2 Qc2+ 38. Kg1 (38. Kh3 $2 Qc1 $19) 38... Qc1+ 39. Kf2 Qxb2+ 40. Ke1 Qxb5 $19) 37... Bd3 {[%emt 0:11:51]} 38. Qxa5 {[%emt 0:00:15]} Qb7 {[%emt 0:01:02]} 39. Qa1 {[%emt 0:01:00]} Qb6 {[%emt 0:00:29]} 40. Qc1 {[%emt 0:00:00]} Qb4 {[%emt 0:00:00]} 41. Kg2 {[%emt 0:02:41]} Qb3 {[%emt 0:02:50]} 42. Kf2 {[%emt 0:00:28]} f6 {[%emt 0:01:56]} (42... Qb4 $14) 43. exf6+ $16 {[%emt 0:04:23]} Kxf6 {[%emt 0:00:05]} 44. Qd2 {[%emt 0:07:44]} ({White should try} 44. Ke1 $1 $16) 44... Kf5 {[%emt 0:01:41]} (44... Kf7 $1 $14) 45. Kg2 {[%emt 0:02:13]} Qb4 {[%emt 0:01:59]} 46. Nb1 {[%emt 0:04:14]} Qb5 {[%emt 0:00:57] [#]} 47. Nc3 {[%emt 0:03:42]} (47. Na3 $142 $1 {[%cal Ra3b5]} Qb3 48. Qa5+ Kf6 49. Qe5+ (49. Qd8+ Kf7 $11) 49... Kf7 50. Qc7+ Kf6 51. Qc3+ (51. Qd8+ Kg7 $11) 51... Qxc3 52. bxc3) 47... Qb4 {[%emt 0:00:24]} 48. Qf2 {[%emt 0:01:06]} ({Better is} 48. Kg1 $16) 48... Qb3 {[%emt 0:01:48]} 49. Ne2 {[%emt 0:01:17]} (49. Kh2 $16) 49... Bxe2 $14 {[%emt 0:01:43]} 50. Qxe2 {[%emt 0:00:04] Qd2 is the strong threat. KQ-KQ} Qb4 {[%emt 0:01:17][%mdl 8192] Prevents Qd2.} (50... Kf6 $14) 51. Qc2 $18 {[%emt 0:00:55] aiming for Qc3.} Qb5 {[%emt 0:03:14]} 52. b3 {[%emt 0:00:36]} Kf6 {[%emt 0:04:28] [#]} 53. Qb2+ $2 {[%emt 0:04:39]} ({Not} 53. Qxe4 Qxb3 54. Qd4+ Kf7 $16) (53. Qc4 $1 $18 {[%cal Rc4b5]} Qb7 54. b4) 53... Kf7 $1 $11 {[%emt 0:00:46] The position is equal.} 54. b4 {[%emt 0:00:01]} Qd3 {[%emt 0:00:40]} 55. Kf2 {[%emt 0:00:13] Hoping for b5.} Qd1 {[%emt 0:00:20]} 56. Qe2 {[%emt 0:02:42]} Qh1 {[%emt 0:03:15]} 57. b5 {[%emt 0:00:01]} Ke7 {[%emt 0:00:36]} 58. b6 {[%emt 0:01:03] Weighted Error Value: White=0.20 (precise) /Black=0.22 (precise)} 1/2-1/2